fUSD/lending_fUSD_20240919
["ID","MTS","AMOUNT","RATE_DAILY","PERIOD"]
[338557073,1726733440088,-734.94,0.00013062,2]
[338557075,1726733440098,-500.0,0.00013062,2]
[338557077,1726733440108,-500.0,0.00013062,2]
[338557079,1726733440119,-500.0,0.00013062,2]
[338557080,1726733440129,-500.0,0.00013062,2]
[338557081,1726733440138,-500.0,0.00013062,2]
[338557082,1726733440148,-500.0,0.00013062,2]
[338557083,1726733440159,-500.0,0.00013062,2]
[338557084,1726733440168,-587.74,0.00013062,2]
[338557085,1726733440178,-500.0,0.00013062,2]
[338557086,1726733440187,-500.0,0.00013062,2]
[338557087,1726733440196,-500.0,0.00013062,2]
[338557088,1726733440207,-500.0,0.00013062,2]
[338557089,1726733440216,-721.59,0.00013062,2]
[338557090,1726733440226,-208.39738224,0.00013062,2]
[338557091,1726733440235,-500.0,0.00013062,2]
[338557092,1726733440245,-500.0,0.00013062,2]
[338557093,1726733440256,-500.0,0.00013062,2]
[338557094,1726733440267,-500.0,0.00013062,2]
[338557095,1726733440279,-500.0,0.00013062,2]
[338557096,1726733440289,-641.22127197,0.00013062,2]
[338557097,1726733440299,-500.0,0.00013062,2]
[338557098,1726733440311,-500.0,0.00013062,2]
[338557099,1726733440320,-500.0,0.00013062,2]
[338557100,1726733440330,-500.0,0.00013062,2]
[338557101,1726733440339,-500.0,0.00013062,2]
[338557102,1726733440350,-636.81,0.00013062,2]
[338557103,1726733440361,-500.0,0.00013062,2]
[338557106,1726733440371,-500.0,0.00013062,2]
[338557107,1726733440381,-1075.05,0.00013062,2]
[338557109,1726733440391,-500.0,0.00013062,2]
[338557111,1726733440401,-500.0,0.00013062,2]
[338557114,1726733440410,-500.0,0.00013062,2]
[338557116,1726733440420,-500.0,0.00013062,2]
[338557118,1726733440430,-500.0,0.00013062,2]
[338557120,1726733440439,-500.0,0.00013062,2]
[338557122,1726733440449,-500.0,0.00013062,2]
[338557124,1726733440458,-549.87,0.00013062,2]
[338557126,1726733440467,-500.0,0.00013062,2]
[338557128,1726733440476,-500.0,0.00013062,2]
[338557130,1726733440485,-500.0,0.00013062,2]
[338557132,1726733440495,-500.0,0.00013062,2]
[338557134,1726733440504,-500.0,0.00013062,2]
[338557136,1726733440513,-500.0,0.00013062,2]
[338557138,1726733440523,-500.0,0.00013062,2]
[338557140,1726733440534,-500.0,0.00013062,2]
[338557142,1726733440544,-500.0,0.00013062,2]
[338557144,1726733440553,-500.0,0.00013062,2]
[338557146,1726733440562,-500.0,0.00013062,2]
[338557148,1726733440571,-500.0,0.00013062,2]
[338557150,1726733440580,-500.0,0.00013062,2]
[338557152,1726733440590,-500.0,0.00013062,2]
[338557154,1726733440599,-500.0,0.00013062,2]
[338557156,1726733440609,-500.0,0.00013062,2]
[338557158,1726733440619,-500.0,0.00013062,2]
[338557160,1726733440628,-500.0,0.00013062,2]
[338557162,1726733440638,-643.52,0.00013062,2]
[338557164,1726733440647,-500.0,0.00013062,2]
[338557166,1726733440656,-672.58,0.00013062,2]
[338557168,1726733440666,-500.0,0.00013062,2]
[338557170,1726733440675,-500.0,0.00013062,2]
[338557172,1726733440684,-500.0,0.00013062,2]
[338557174,1726733440693,-169.5359119,0.00013062,2]
[338557176,1726733440703,-500.0,0.00013062,2]
[338557178,1726733440712,-783.51,0.00013062,2]
[338557180,1726733440722,-500.0,0.00013062,2]
[338557182,1726733440733,-500.0,0.00013062,2]
[338557184,1726733440742,-500.0,0.00013062,2]
[338557186,1726733440752,-745.05,0.00013062,2]
[338557188,1726733440761,-614.51,0.00013062,2]
[338557190,1726733440771,-943.71,0.00013062,2]
[338557192,1726733440781,-500.0,0.00013062,2]
[338557194,1726733440791,-1209.81,0.00013062,2]
[338557196,1726733440801,-528.89,0.00013062,2]
[338557198,1726733440811,-500.0,0.00013062,2]
[338557200,1726733440820,-500.0,0.00013062,2]
[338557202,1726733440830,-641.28,0.00013062,2]
[338557204,1726733440839,-500.0,0.00013062,2]
[338557206,1726733440849,-500.0,0.00013062,2]
[338557208,1726733440858,-849.17,0.00013062,2]
[338557210,1726733440868,-500.0,0.00013062,2]
[338557212,1726733440878,-500.0,0.00013062,2]
[338557214,1726733440888,-605.27,0.00013062,2]
[338557217,1726733440898,-437.57598061,0.00013062,2]
[338557219,1726733440908,-500.0,0.00013162,2]
[338557221,1726733440917,-238.89978454,0.00013162,2]
[338557223,1726733440927,-695.78,0.00013162,2]
[338557225,1726733440936,-500.0,0.00013162,2]
[338557227,1726733440946,-500.0,0.00013162,2]
[338557228,1726733440956,-500.0,0.00013162,2]
[338557231,1726733440967,-610.93,0.00013162,2]
[338557233,1726733440977,-500.0,0.00013162,2]
[338557235,1726733440987,-500.0,0.00013162,2]
[338557237,1726733440996,-500.0,0.00013162,2]
[338557239,1726733441006,-500.0,0.00013162,2]
[338557241,1726733441016,-993.17,0.00013162,2]
[338557243,1726733441026,-500.0,0.00013162,2]
[338557245,1726733441035,-500.0,0.00013162,2]
[338557246,1726733441045,-500.0,0.00013162,2]
[338557249,1726733441055,-500.0,0.00013162,2]
[338557251,1726733441065,-500.0,0.00013162,2]
[338557253,1726733441074,-509.22,0.00013162,2]
[338557255,1726733441084,-508.45,0.00013162,2]
[338557257,1726733441094,-500.0,0.00013162,2]
[338557259,1726733441103,-500.0,0.00013162,2]
[338557261,1726733441113,-500.0,0.00013162,2]
[338557263,1726733441122,-500.0,0.00013162,2]
[338557269,1726733441177,-500.0,0.00013162,2]
[338557271,1726733441189,-500.0,0.00013162,2]
[338557273,1726733441198,-555.56,0.00013162,2]
[338557276,1726733441209,-500.0,0.00013162,2]
[338557277,1726733441218,-500.0,0.00013162,2]
[338557279,1726733441227,-500.0,0.00013162,2]
[338557281,1726733441237,-300.19027753,0.00013162,2]
[338557284,1726733441247,-500.0,0.00013162,2]
[338557286,1726733441257,-500.0,0.00013162,2]
[338557288,1726733441267,-500.0,0.00013162,2]
[338557290,1726733441276,-500.0,0.00013162,2]
[338557292,1726733441287,-500.0,0.00013162,2]
[338557294,1726733441297,-513.77,0.00013162,2]
[338557296,1726733441307,-500.0,0.00013162,2]
[338557298,1726733441316,-500.0,0.00013162,2]
[338557300,1726733441326,-500.0,0.00013162,2]
[338557301,1726733441335,-500.0,0.00013162,2]
[338557303,1726733441344,-536.2,0.00013162,2]
[338557305,1726733441359,-500.0,0.00013162,2]
[338557307,1726733441368,-500.0,0.00013162,2]
[338557308,1726733441378,-500.0,0.00013162,2]
[338557309,1726733441388,-163.33871473,0.00013162,2]
[338557310,1726733441397,-500.0,0.00013162,2]
[338557311,1726733441407,-500.0,0.00013162,2]
[338557312,1726733441416,-642.0,0.00013162,2]
[338557313,1726733441426,-500.0,0.00013162,2]
[338557314,1726733441435,-310.65675944,0.00013162,2]
[338557315,1726733441445,-878.46,0.00013162,2]
[338557316,1726733441455,-500.0,0.00013162,2]
[338557317,1726733441465,-500.0,0.00013162,2]
[338557318,1726733441474,-500.0,0.00013162,2]
[338557319,1726733441484,-500.0,0.00013162,2]
[338557320,1726733441493,-500.0,0.00013162,2]
[338557321,1726733441503,-500.0,0.00013162,2]
[338557322,1726733441512,-500.0,0.00013162,2]
[338557323,1726733441522,-500.0,0.00013162,2]
[338557324,1726733441532,-500.0,0.00013162,2]
[338557325,1726733441541,-500.0,0.00013162,2]
[338557326,1726733441551,-512.2,0.00013162,2]
[338557327,1726733441561,-738.29,0.00013162,2]
[338557328,1726733441570,-500.0,0.00013162,2]
[338557329,1726733441579,-954.14,0.00013162,2]
[338557330,1726733441588,-500.0,0.00013162,2]
[338557331,1726733441598,-500.0,0.00013162,2]
[338557332,1726733441608,-500.0,0.00013162,2]
[338557333,1726733441617,-500.0,0.00013162,2]
[338557334,1726733441626,-404.17107323,0.00013162,2]
[338557335,1726733441635,-897.37,0.00013162,2]
[338557336,1726733441645,-500.0,0.00013162,2]
[338557337,1726733441654,-500.0,0.00013162,2]
[338557338,1726733441663,-500.0,0.00013162,2]
[338557339,1726733441674,-695.2,0.00013162,2]
[338557340,1726733441683,-522.46,0.00013162,2]
[338557342,1726733441693,-500.0,0.00013162,2]
[338557344,1726733441703,-868.83,0.00013162,2]
[338557346,1726733441713,-500.0,0.00013162,2]
[338557348,1726733441723,-500.0,0.00013162,2]
[338557351,1726733441734,-500.0,0.00013162,2]
[338557352,1726733441744,-500.0,0.00013162,2]
[338557355,1726733441754,-1326.93,0.00013162,2]
[338557356,1726733441764,-674.02,0.00013162,2]
[338557358,1726733441773,-500.0,0.00013162,2]
[338557361,1726733441782,-500.0,0.00013162,2]
[338557362,1726733441791,-500.0,0.00013162,2]
[338557364,1726733441802,-500.0,0.00013162,2]
[338557367,1726733441811,-1881.36,0.00013162,2]
[338557369,1726733441821,-500.0,0.00013162,2]
[338557371,1726733441830,-500.0,0.00013162,2]
[338557372,1726733441840,-627.83,0.00013162,2]
[338557374,1726733441849,-500.0,0.00013162,2]
[338557376,1726733441859,-525.93,0.00013162,2]
[338557378,1726733441868,-507.37,0.00013162,2]
[338557380,1726733441878,-500.0,0.00013162,2]
[338557382,1726733441887,-500.0,0.00013162,2]
[338557384,1726733441896,-620.34237698,0.00013162,2]
[338557386,1726733441906,-500.0,0.00013162,2]
[338557388,1726733441915,-537.85,0.00013162,2]
[338557390,1726733441924,-500.0,0.00013162,2]
[338557392,1726733441933,-706.39,0.00013162,2]
[338557394,1726733441942,-500.0,0.00013162,2]
[338557396,1726733441951,-500.0,0.00013162,2]
[338557398,1726733441961,-500.0,0.00013162,2]
[338557400,1726733441970,-500.0,0.00013162,2]
[338557402,1726733441979,-1720.07,0.00013162,2]
[338557404,1726733441988,-500.0,0.00013162,2]
[338557406,1726733441997,-616.49,0.00013162,2]
[338557408,1726733442007,-500.0,0.00013162,2]
[338557410,1726733442016,-500.0,0.00013162,2]
[338557412,1726733442025,-906.75,0.00013162,2]
[338557414,1726733442035,-500.0,0.00013162,2]
[338557416,1726733442045,-500.0,0.00013162,2]
[338557417,1726733442055,-24.17312536,0.00013162,2]
[338557421,1726733442080,-618.67687464,0.00013162,2]
[338557423,1726733442090,-500.0,0.00013162,2]
[338557425,1726733442100,-500.0,0.00013163,2]
[338557427,1726733442108,-500.0,0.00013163,2]
[338557428,1726733442117,-500.0,0.00013163,2]
[338557430,1726733442126,-500.0,0.00013163,2]
[338557432,1726733442135,-500.0,0.00013163,2]
[338557434,1726733442145,-500.0,0.00013163,2]
[338557436,1726733442155,-11154.20804215,0.00013176,2]
[338557438,1726733442164,-962.1836,0.00013236,2]
[338557440,1726733442173,-345.36063455,0.00013236,2]
[338557442,1726733442183,-880.53,0.00013335,2]
[338557444,1726733442193,-500.0,0.00013335,2]
[338557446,1726733442202,-500.0,0.00013335,2]
[338557448,1726733442211,-500.0,0.00013335,2]
[338557450,1726733442221,-500.0,0.00013335,2]
[338557452,1726733442230,-500.0,0.00013335,2]
[338557454,1726733442240,-500.0,0.00013335,2]
[338557456,1726733442249,-500.0,0.00013335,2]
[338557458,1726733442259,-1038.92,0.00013335,2]
[338557460,1726733442268,-515.94,0.00013335,2]
[338557461,1726733442278,-500.0,0.00013335,2]
[338557463,1726733442289,-500.0,0.00013335,2]
[338557465,1726733442298,-500.0,0.00013335,2]
[338557467,1726733442308,-972.03,0.00013335,2]
[338557469,1726733442317,-2893.75,0.00013335,2]
[338557471,1726733442327,-991.73,0.00013335,2]
[338557473,1726733442336,-500.0,0.00013335,2]
[338557475,1726733442346,-547.9,0.00013335,2]
[338557477,1726733442359,-500.0,0.00013335,2]
[338557479,1726733442369,-500.0,0.00013335,2]
[338557481,1726733442378,-500.0,0.00013335,2]
[338557483,1726733442388,-4265.64,0.00013335,2]
[338557485,1726733442399,-596.86,0.00013335,2]
[338557487,1726733442408,-500.0,0.00013335,2]
[338557489,1726733442418,-500.0,0.00013335,2]
[338557491,1726733442429,-500.0,0.00013335,2]
[338557493,1726733442438,-993.18,0.00013335,2]
[338557495,1726733442447,-13243.4,0.00013335,2]
[338557497,1726733442458,-873.67,0.00013335,2]
[338557499,1726733442467,-1065.45,0.00013335,2]
[338557501,1726733442476,-1313.44,0.00013335,2]
[338557503,1726733442486,-2360.59,0.00013335,2]
[338557505,1726733442495,-1584.91,0.00013335,2]
[338557507,1726733442505,-500.0,0.00013335,2]
[338557509,1726733442515,-1243.35,0.00013335,2]
[338557511,1726733442524,-1457.82,0.00013335,2]
[338557513,1726733442534,-500.0,0.00013335,2]
[338557515,1726733442543,-500.0,0.00013335,2]
[338557517,1726733442553,-952.05,0.00013335,2]
[338557519,1726733442562,-500.87,0.00013335,2]
[338557521,1726733442571,-733.48,0.00013335,2]
[338557523,1726733442596,-863.21,0.00013335,2]
[338557526,1726733442605,-1269.16,0.00013335,2]
[338557528,1726733442615,-500.0,0.00013335,2]
[338557530,1726733442624,-589.4,0.00013335,2]
[338557532,1726733442634,-1055.46,0.00013335,2]
[338557534,1726733442643,-1061.98,0.00013335,2]
[338557536,1726733442653,-500.0,0.00013335,2]
[338557538,1726733442662,-2844.65,0.00013335,2]
[338557539,1726733442671,-500.0,0.00013335,2]
[338557541,1726733442680,-593.82,0.00013335,2]
[338557543,1726733442689,-680.98,0.00013335,2]
[338557545,1726733442698,-1168.28,0.00013335,2]
[338557547,1726733442708,-1783.74,0.00013335,2]
[338557549,1726733442717,-878.88,0.00013335,2]
[338557551,1726733442727,-500.0,0.00013335,2]
[338557553,1726733442736,-500.0,0.00013335,2]
[338557555,1726733442746,-675.46,0.00013335,2]
[338557557,1726733442756,-500.0,0.00013335,2]
[338557559,1726733442766,-781.22,0.00013335,2]
[338557561,1726733442775,-917.57,0.00013335,2]
[338557563,1726733442786,-500.0,0.00013335,2]
[338557566,1726733442796,-500.0,0.00013335,2]
[338557568,1726733442806,-1397.75,0.00013335,2]
[338557570,1726733442815,-500.0,0.00013335,2]
[338557571,1726733442825,-791.33,0.00013335,2]
[338557573,1726733442834,-789.01,0.00013335,2]
[338557575,1726733442844,-500.0,0.00013335,2]
[338557577,1726733442853,-500.0,0.00013335,2]
[338557579,1726733442862,-551.28,0.00013335,2]
[338557581,1726733442871,-1065.78,0.00013335,2]
[338557584,1726733442881,-500.0,0.00013335,2]
[338557587,1726733442891,-852.97,0.00013335,2]
[338557589,1726733442900,-539.84,0.00013335,2]
[338557591,1726733442910,-500.0,0.00013335,2]
[338557593,1726733442920,-500.0,0.00013335,2]
[338557595,1726733442930,-500.0,0.00013335,2]
[338557597,1726733442939,-500.0,0.00013335,2]
[338557599,1726733442948,-714.42,0.00013335,2]
[338557601,1726733442958,-507.87,0.00013336,2]
[338557603,1726733442968,-500.0,0.00013336,2]
[338557605,1726733442978,-500.0,0.00013336,2]
[338557607,1726733442987,-500.0,0.00013336,2]
[338557610,1726733442996,-500.0,0.00013336,2]
[338557612,1726733443006,-475.69371581,0.00013336,2]
[338557614,1726733443015,-500.0,0.00013336,2]
[338557616,1726733443025,-500.0,0.00013336,2]
[338557617,1726733443037,-500.0,0.00013336,2]
[338557618,1726733443046,-500.0,0.00013336,2]
[338557620,1726733443056,-500.0,0.00013336,2]
[338557621,1726733443065,-500.0,0.00013336,2]
[338557623,1726733443075,-500.0,0.00013336,2]
[338557625,1726733443084,-500.0,0.00013336,2]
[338557627,1726733443094,-546.58,0.00013336,2]
[338557629,1726733443103,-500.0,0.00013336,2]
[338557631,1726733443112,-500.0,0.00013336,2]
[338557633,1726733443122,-500.0,0.00013336,2]
[338557636,1726733443132,-500.0,0.00013336,2]
[338557638,1726733443141,-500.0,0.00013336,2]
[338557640,1726733443151,-584.93676924,0.00013336,2]
[338557641,1726733443160,-500.0,0.00013336,2]
[338557643,1726733443170,-500.0,0.00013336,2]
[338557645,1726733443180,-500.0,0.00013336,2]
[338557648,1726733443190,-500.0,0.00013336,2]
[338557650,1726733443199,-500.0,0.00013336,2]
[338557652,1726733443209,-500.0,0.00013336,2]
[338557653,1726733443218,-500.0,0.00013336,2]
[338557655,1726733443228,-500.0,0.00013336,2]
[338557657,1726733443237,-727.21,0.00013336,2]
[338557660,1726733443247,-500.0,0.00013336,2]
[338557662,1726733443257,-500.0,0.00013336,2]
[338557664,1726733443266,-543.96,0.00013336,2]
[338557665,1726733443276,-500.0,0.00013336,2]
[338557667,1726733443286,-505.64,0.00013336,2]
[338557669,1726733443296,-500.0,0.00013336,2]
[338557671,1726733443305,-642.39,0.00013336,2]
[338557674,1726733443315,-500.0,0.00013336,2]
[338557675,1726733443324,-500.0,0.00013336,2]
[338557677,1726733443333,-609.45,0.00013336,2]
[338557679,1726733443342,-612.72,0.00013336,2]
[338557681,1726733443353,-500.0,0.00013336,2]
[338557683,1726733443363,-500.0,0.00013336,2]
[338557686,1726733443373,-500.0,0.00013336,2]
[338557688,1726733443382,-500.0,0.00013336,2]
[338557690,1726733443391,-500.0,0.00013336,2]
[338557692,1726733443401,-500.0,0.00013336,2]
[338557694,1726733443410,-682.86,0.00013336,2]
[338557696,1726733443420,-734.94,0.00013336,2]
[338557698,1726733443430,-500.0,0.00013336,2]
[338557700,1726733443440,-500.0,0.00013336,2]
[338557702,1726733443449,-500.0,0.00013336,2]
[338557704,1726733443458,-500.0,0.00013336,2]
[338557706,1726733443467,-500.0,0.00013336,2]
[338557707,1726733443477,-500.0,0.00013336,2]
[338557709,1726733443487,-500.0,0.00013336,2]
[338557712,1726733443497,-587.74,0.00013336,2]
[338557714,1726733443507,-500.0,0.00013336,2]
[338557716,1726733443516,-500.0,0.00013336,2]
[338557718,1726733443525,-500.0,0.00013336,2]
[338557719,1726733443537,-500.0,0.00013336,2]
[338557720,1726733443546,-721.59,0.00013336,2]
[338557721,1726733443555,-500.0,0.00013336,2]
[338557724,1726733443565,-500.0,0.00013336,2]
[338557726,1726733443575,-500.0,0.00013336,2]
[338557728,1726733443584,-500.0,0.00013336,2]
[338557730,1726733443594,-500.0,0.00013336,2]
[338557731,1726733443604,-500.0,0.00013336,2]
[338557732,1726733443613,-500.0,0.00013336,2]
[338557734,1726733443622,-484.73,0.00013336,2]
[338557736,1726733443631,-500.0,0.00013336,2]
[338557738,1726733443641,-500.0,0.00013336,2]
[338557740,1726733443650,-636.81,0.00013336,2]
[338557742,1726733443659,-500.0,0.00013336,2]
[338557743,1726733443668,-500.0,0.00013336,2]
[338557744,1726733443677,-1075.05,0.00013336,2]
[338557745,1726733443686,-500.0,0.00013336,2]
[338557747,1726733443695,-500.0,0.00013336,2]
[338557749,1726733443704,-500.0,0.00013336,2]
[338557750,1726733443713,-500.0,0.00013336,2]
[338557751,1726733443722,-500.0,0.00013336,2]
[338557752,1726733443731,-500.0,0.00013336,2]
[338557753,1726733443741,-500.0,0.00013336,2]
[338557754,1726733443750,-549.87,0.00013336,2]
[338557755,1726733443759,-500.0,0.00013336,2]
[338557756,1726733443768,-500.0,0.00013336,2]
[338557757,1726733443777,-500.0,0.00013336,2]
[338557758,1726733443787,-500.0,0.00013336,2]
[338557759,1726733443796,-500.0,0.00013336,2]
[338557760,1726733443806,-500.0,0.00013336,2]
[338557761,1726733443816,-500.0,0.00013336,2]
[338557762,1726733443826,-500.0,0.00013336,2]
[338557763,1726733443835,-500.0,0.00013336,2]
[338557764,1726733443845,-500.0,0.00013336,2]
[338557765,1726733443854,-500.0,0.00013336,2]
[338557766,1726733443864,-500.0,0.00013336,2]
[338557767,1726733443874,-500.0,0.00013336,2]
[338557768,1726733443883,-500.0,0.00013336,2]
[338557770,1726733443892,-500.0,0.00013336,2]
[338557772,1726733443901,-500.0,0.00013336,2]
[338557774,1726733443911,-500.0,0.00013336,2]
[338557776,1726733443921,-500.0,0.00013336,2]
[338557778,1726733443930,-643.52,0.00013336,2]
[338557780,1726733443940,-500.0,0.00013336,2]
[338557782,1726733443949,-672.58,0.00013336,2]
[338557784,1726733443958,-500.0,0.00013336,2]
[338557786,1726733443968,-500.0,0.00013336,2]
[338557788,1726733443977,-500.0,0.00013336,2]
[338557790,1726733443986,-500.0,0.00013336,2]
[338557792,1726733443996,-783.51,0.00013336,2]
[338557794,1726733444005,-500.0,0.00013336,2]
[338557796,1726733444016,-500.0,0.00013336,2]
[338557798,1726733444025,-500.0,0.00013336,2]
[338557800,1726733444034,-745.05,0.00013336,2]
[338557802,1726733444043,-614.51,0.00013336,2]
[338557804,1726733444052,-943.71,0.00013336,2]
[338557806,1726733444062,-500.0,0.00013336,2]
[338557808,1726733444071,-1209.81,0.00013336,2]
[338557810,1726733444080,-528.89,0.00013336,2]
[338557812,1726733444089,-500.0,0.00013336,2]
[338557814,1726733444100,-500.0,0.00013336,2]
[338557816,1726733444109,-641.28,0.00013336,2]
[338557818,1726733444119,-500.0,0.00013336,2]
[338557820,1726733444129,-500.0,0.00013336,2]
[338557822,1726733444138,-849.17,0.00013336,2]
[338557824,1726733444148,-500.0,0.00013336,2]
[338557826,1726733444159,-500.0,0.00013336,2]
[338557828,1726733444168,-605.27,0.00013336,2]
[338557830,1726733444178,-644.47810266,0.00013436,2]
[338557832,1726733444188,-695.78,0.00013436,2]
[338557834,1726733444198,-500.0,0.00013436,2]
[338557837,1726733444210,-500.0,0.00013436,2]
[338557839,1726733444220,-500.0,0.00013436,2]
[338557841,1726733444231,-610.93,0.00013436,2]
[338557843,1726733444241,-500.0,0.00013436,2]
[338557845,1726733444250,-500.0,0.00013436,2]
[338557847,1726733444260,-500.0,0.00013436,2]
[338557849,1726733444269,-993.17,0.00013436,2]
[338557851,1726733444279,-500.0,0.00013436,2]
[338557853,1726733444290,-188.7069368,0.00013436,2]
[338557854,1726733444300,-500.0,0.00013436,2]
[338557856,1726733444310,-500.0,0.00013436,2]
[338557859,1726733444320,-500.0,0.00013436,2]
[338557861,1726733444329,-500.0,0.00013436,2]
[338557862,1726733444338,-509.22,0.00013436,2]
[338557864,1726733444350,-508.45,0.00013436,2]
[338557867,1726733444361,-500.0,0.00013436,2]
[338557868,1726733444370,-500.0,0.00013436,2]
[338557870,1726733444380,-500.0,0.00013436,2]
[338557873,1726733444391,-500.0,0.00013436,2]
[338557875,1726733444401,-500.0,0.00013436,2]
[338557877,1726733444411,-500.0,0.00013436,2]
[338557879,1726733444421,-555.56,0.00013436,2]
[338557881,1726733444434,-500.0,0.00013436,2]
[338557883,1726733444446,-500.0,0.00013436,2]
[338557885,1726733444456,-500.0,0.00013436,2]
[338557887,1726733444466,-500.0,0.00013436,2]
[338557889,1726733444477,-500.0,0.00013436,2]
[338557891,1726733444487,-500.0,0.00013436,2]
[338557893,1726733444496,-500.0,0.00013436,2]
[338557895,1726733444507,-500.0,0.00013436,2]
[338557897,1726733444518,-513.77,0.00013436,2]
[338557899,1726733444527,-500.0,0.00013436,2]
[338557901,1726733444540,-500.0,0.00013436,2]
[338557903,1726733444549,-500.0,0.00013436,2]
[338557905,1726733444558,-500.0,0.00013436,2]
[338557907,1726733444567,-536.2,0.00013436,2]
[338557909,1726733444576,-500.0,0.00013436,2]
[338557911,1726733444586,-500.0,0.00013436,2]
[338557913,1726733444596,-500.0,0.00013436,2]
[338557915,1726733444605,-500.0,0.00013436,2]
[338557917,1726733444614,-500.0,0.00013436,2]
[338557918,1726733444623,-642.0,0.00013436,2]
[338557920,1726733444632,-500.0,0.00013436,2]
[338557922,1726733444641,-878.46,0.00013436,2]
[338557924,1726733444651,-500.0,0.00013436,2]
[338557926,1726733444661,-500.0,0.00013436,2]
[338557928,1726733444670,-500.0,0.00013436,2]
[338557930,1726733444679,-500.0,0.00013436,2]
[338557932,1726733444688,-343.15130036,0.00013436,2]
[338557934,1726733444698,-500.0,0.00013436,2]
[338557936,1726733444707,-500.0,0.00013436,2]
[338557938,1726733444716,-500.0,0.00013436,2]
[338557940,1726733444726,-500.0,0.00013436,2]
[338557942,1726733444736,-500.0,0.00013436,2]
[338557944,1726733444745,-512.2,0.00013436,2]
[338557946,1726733444754,-738.29,0.00013436,2]
[338557948,1726733444763,-612.65574852,0.00013436,2]
[338557950,1726733444773,-954.14,0.00013436,2]
[338557952,1726733444785,-500.0,0.00013436,2]
[338557954,1726733444795,-500.0,0.00013436,2]
[338557956,1726733444805,-500.0,0.00013436,2]
[338557958,1726733444814,-500.0,0.00013436,2]
[338557960,1726733444824,-897.37,0.00013436,2]
[338557962,1726733444834,-500.0,0.00013436,2]
[338557964,1726733444844,-500.0,0.00013436,2]
[338557966,1726733444853,-500.0,0.00013436,2]
[338557968,1726733444863,-695.2,0.00013436,2]
[338557970,1726733444873,-522.46,0.00013436,2]
[338557972,1726733444883,-500.0,0.00013436,2]
[338557974,1726733444892,-868.83,0.00013436,2]
[338557976,1726733444901,-500.0,0.00013436,2]
[338557978,1726733444911,-522.37997313,0.00013436,2]
[338557980,1726733444920,-500.0,0.00013436,2]
[338557982,1726733444930,-500.0,0.00013436,2]
[338557984,1726733444940,-1326.93,0.00013436,2]
[338557986,1726733444949,-674.02,0.00013436,2]
[338557989,1726733444959,-500.0,0.00013436,2]
[338557991,1726733444968,-500.0,0.00013436,2]
[338557992,1726733444978,-500.0,0.00013436,2]
[338557995,1726733444987,-500.0,0.00013436,2]